Cogmind - Beta 10.2 @@@ ROGUE MODE // 2021.05.09 @ 15:39:43 Player: ChromeKnight Result: Destroyed by 7X-XP8(z) with Zionite Laser-S Performance ------------- Evolutions (1) 500 Regions Visited (5) 1000 Robots Destroyed (25) 125 Value Destroyed (528) 528 Prototype IDs (0) 0 Alien Tech Used (0) 0 Bonus (0) 0 TOTAL SCORE: 2153 Bonus ------- None Cogmind --------- Core Integrity 0/400 Matter 290/300 Energy 99/100 System Corruption 0% Temperature Cool (18) Movement Core (300) Ox5 Location -7/Deep Caves Parts ------- > --- POWER (2) -------- (None) > --- PROPULSION (3) --- (None) > --- UTILITY (2) ------ Large Storage Unit Improved Propulsion Shielding > --- WEAPON (2) ------- (None) > --- INVENTORY (10) --- 0b10 Decoder Chip [Looter] Makeshift Armor Plating Hacking Drone Bay Heavy Mace Heavy Mace Heavy Mace Makeshift Axe CR-A16's Pointy Stick Self-destruct Interrupter (50) Peak State ------------ > --- POWER ------------ Makeshift Power Source Makeshift Power Source > --- PROPULSION ------- Aluminum Leg Aluminum Leg Makeshift Leg > --- UTILITY ---------- Improved Heat Sink Large Storage Unit > --- WEAPON ----------- Spread Laser Light Assault Rifle > --- INVENTORY -------- 0b10 Decoder Chip [Looter] Improved Propulsion Shielding Makeshift Armor Plating Hacking Drone Bay Heavy Mace Heavy Mace Heavy Mace Makeshift Axe CR-A16's Pointy Stick Self-destruct Interrupter [Rating: 25] Favorites ----------- Power Nuclear Core Engine Makeshift Power Source Power Core Nuclear Core Propulsion Aluminum Leg Leg Aluminum Leg Utility Large Storage Unit Device Improved Heat Sink Storage Large Storage Unit Protection Improved Propulsion Shielding Weapon Light Assault Rifle Energy Gun Spread Laser Ballistic Gun Light Assault Rifle Build | -11 -10 -9 -9 -7 -7 ------- Run | Scr Mat Mat Min Zio Dee Slots Evolved 2 | . . 2 . . . Power 1 | . . 1 . . . Propulsion 1 | . . 1 . . . Utility . | . . . . . . Weapon . | . . . . . . Parts Attached 33 | 7 1 18 1 5 1 Power 10 | 1 . 5 . 4 . Engine 6 | 1 . 3 . 2 . Core 4 | . . 2 . 2 . Reactor . | . . . . . . Propulsion 8 | 2 . 5 . 1 . Treads . | . . . . . . Leg 8 | 2 . 5 . 1 . Wheel . | . . . . . . Hover . | . . . . . . Flight . | . . . . . . Utility 5 | 1 1 2 . . 1 Device 2 | . 1 1 . . . Storage 2 | 1 . 1 . . . Processor . | . . . . . . Hackware . | . . . . . . Protection 1 | . . . . . 1 Artifact . | . . . . . . Weapon 10 | 3 . 6 1 . . Energy Gun 8 | 2 . 6 . . . Energy Cannon . | . . . . . . Ballistic Gun 2 | 1 . . 1 . . Ballistic Cannon . | . . . . . . Launcher . | . . . . . . Special Weapon . | . . . . . . Impact Weapon . | . . . . . . Slashing Weapon . | . . . . . . Piercing Weapon . | . . . . . . Special Melee Weapon . | . . . . . . Unidentified Prototypes . | . . . . . . Parts Lost 9 | . . 1 1 . 7 Power 1 | . . . . . 1 Propulsion 3 | . . . . . 3 Utility 1 | . . . . . 1 Weapon 4 | . . 1 1 . 2 Highest Loss Streak 7 | . . 1 1 . 7 Average Slot Usage (%) 97 | . 88 94 100 100 95 Engine 5 | . 14 3 . 4 21 Core 15 | . . 16 22 17 . Leg 32 | . 28 30 33 33 31 Device 10 | . 3 11 11 11 10 Storage 11 | . 14 11 11 11 11 Energy Gun 13 | . 14 20 13 11 10 Ballistic Gun 8 | . 14 1 8 11 10 Naked Turns . | . . . . . . Heaviest Build 37 | 12 13 37 37 35 29 Greatest Support 40 | 20 20 30 30 40 40 Greatest Overweight (x) 5 | 3 . 1 1 1 5 Average Overweight (x) . | . . . 1 . . Largest Inventory Capacity 10 | 6 6 10 10 10 10 Average Capacity 9 | 5 6 8 10 10 10 Most Carried 10 | 1 5 10 10 10 10 Average Carried 8 | . 2 8 10 9 9 Final Capacity 10 | 6 6 10 10 10 10 Final Carried 10 | 1 5 10 10 10 9 Class Distribution -------------------- 79% | Scavenger-Mutant 20% | Mutant Dominant Class ---------------- Mutant | -10/Materials Mutant | -9/Materials Scavenger-Mutant | -9/Mines Scavenger-Mutant | -7/Zion Scavenger-Mutant | -7/Deep Caves Resources | -11 -10 -9 -9 -7 -7 ----------- Run | Scr Mat Mat Min Zio Dee Matter Collected 545 | 158 34 285 12 51 5 Remotely . | . . . . . . Salvage Created 860 | . 87 650 123 . . Parts 64 | . 3 52 9 . . Haulers Intercepted 2 | . . 2 . . . Recyclers Shooed . | . . . . . . Parts Field Recycled . | . . . . . . Retrieved Matter . | . . . . . . Parts Self-Destructed . | . . . . . . Prevented . | . . . . . . Kills | -11 -10 -9 -9 -7 -7 ------- Run | Scr Mat Mat Min Zio Dee Combat Hostiles Destroyed 17 | . 2 12 3 . . Guns 15 | . 2 10 3 . . AOE 2 | . . 2 . . . Classes Destroyed 9 | . 1 6 2 . . Builder 2 | . . 2 . . . Tunneler 1 | . . . 1 . . Hauler 2 | . . 2 . . . Recycler 1 | . . . 1 . . Operator 1 | . . 1 . . . Watcher 1 | . . 1 . . . Swarmer 6 | . . 3 3 . . Grunt 9 | . 2 7 . . . Sentry 2 | . . 2 . . . Best Kill Streak 5 | . 2 5 4 . . Combat Bots Only 5 | . 2 5 3 . . Max Kills in Single Turn 2 | . 1 2 1 . . Gunslinging . | . . . . . . Exploded 2 | . . 2 . . . Melee . | . . . . . . Uniques/NPCs Destroyed . | . . . . . . Combat | -11 -10 -9 -9 -7 -7 -------- Run | Scr Mat Mat Min Zio Dee Damage Taken 1632 | . 98 422 134 . 978 Core 422 | . 22 74 10 . 316 Absorbed by Shields . | . . . . . . Core Remaining (%) 95 | 100 91 . . . . Volleys Fired 79 | . 13 46 13 . 7 Largest 2 | . 2 2 2 . 2 Hottest 110 | . 60 110 110 . 85 Shots Fired 149 | . 26 85 26 . 12 Gun 149 | . 26 85 26 . 12 Cannon . | . . . . . . Launcher . | . . . . . . Special . | . . . . . . Kinetic 27 | . 13 4 3 . 7 Thermal 21 | . . 3 13 . 5 Explosive . | . . . . . . Electromagnetic 101 | . 13 78 10 . . Robot Hit Streak 10 | . 4 10 5 . 5 Robot Miss Streak 10 | . 2 3 10 . 4 Penetration Max . | . . . . . . Secondary Targets 2 | . 1 1 . . . Max Gunslinging Chain 1 | . 1 1 . . . Shots Hit Robots 118 | . 19 72 18 . 9 Core Hits 62 | . 5 35 14 . 8 Critical Hits . | . . . . . . Critical Kills . | . . . . . . Critical Parts Destroyed . | . . . . . . Melee Attacks . | . . . . . . Impact . | . . . . . . Slashing . | . . . . . . Piercing . | . . . . . . Sneak Attacks . | . . . . . . Combat Hostiles . | . . . . . . Follow-up Attacks . | . . . . . . Damage Inflicted 1461 | . 219 978 185 . 79 Guns 1175 | . 193 764 139 . 79 Cannons . | . . . . . . Explosions 286 | . 26 214 46 . . Melee . | . . . . . . Ramming . | . . . . . . Kinetic 106 | . 64 7 7 . 28 Thermal 426 | . 26 231 118 . 51 Explosive . | . . . . . . Electromagnetic 929 | . 129 740 60 . . Impact . | . . . . . . Slashing . | . . . . . . Piercing . | . . . . . . Highest Corruption . | . . . . . . Average Corruption . | . . . . . . Corruption Purged . | . . . . . . Overload Shots . | . . . . . . Overflow Damage 34 | . . . 34 . . Projectiles . | . . . . . . Explosions 34 | . . . 34 . . Melee . | . . . . . . Knockbacks . | . . . . . . Impact . | . . . . . . Kinetic . | . . . . . . Secondary . | . . . . . . Self-Inflicted Damage 124 | . 19 69 36 . . Shots 4 | . 1 2 1 . . Rammed . | . . . . . . Targets Rammed . | . . . . . . Kicked . | . . . . . . Crushed . | . . . . . . Highest Temperature 216 | . 94 186 216 . 57 Average Temperature 53 | . 35 51 88 . 20 Received Heat Transfer 452 | . 42 147 . . 263 Siege Activations . | . . . . . . Robots Corrupted . | . . . . . . Combat Hostiles . | . . . . . . Parts Fried 1 | . . 1 . . . Impact Corruptions . | . . . . . . Robots Melted . | . . . . . . Combat Hostiles . | . . . . . . Parts Melted . | . . . . . . Heat Transferred 530 | . 50 270 140 . 70 Parts Sabotaged . | . . . . . . Parts Stolen . | . . . . . . Parts Stripped . | . . . . . . Power Chain Reactions 5 | . 1 3 1 . . Missiles Intercepted . | . . . . . . Alert | -11 -10 -9 -9 -7 -7 ------- Run | Scr Mat Mat Min Zio Dee Peak Influence 375 | . 92 375 165 . . Initial 90 | . . 38 90 . . Average 109 | . 42 183 74 . . Maximum Alert Level 1 | . . 1 . . . Low Security (%) 82 | 100 100 54 100 . . Level 1 17 | . . 45 . . . Level 2 . | . . . . . . Level 3 . | . . . . . . Level 4 . | . . . . . . Level 5 . | . . . . . . High Security . | . . . . . . Max Security . | . . . . . . Squads Dispatched 6 | . 3 3 . . . Investigation 1 | . 1 . . . . Extermination . | . . . . . . Reinforcement 5 | . 2 3 . . . Assault . | . . . . . . Garrison . | . . . . . . Intercept . | . . . . . . Construction Impeded 1 | . . 1 . . . Haulers Reinforced . | . . . . . . Stealth | -11 -10 -9 -9 -7 -7 --------- Run | Scr Mat Mat Min Zio Dee Distress Signals . | . . . . . . Communications Jammed . | . . . . . . Distress Signals . | . . . . . . Times Spotted 37 | . 8 17 3 . 9 Peak Tracking Total 5 | . 3 5 3 . 3 Tactical Retreats . | . . . . . . Traps | -11 -10 -9 -9 -7 -7 ------- Run | Scr Mat Mat Min Zio Dee Traps Triggered . | . . . . . . Indirectly . | . . . . . . Trap Hack Attempts . | . . . . . . Triggered . | . . . . . . Disarmed . | . . . . . . Reprogrammed . | . . . . . . Reused . | . . . . . . Traps Extracted . | . . . . . . Installed . | . . . . . . Triggered . | . . . . . . Machines | -11 -10 -9 -9 -7 -7 ---------- Run | Scr Mat Mat Min Zio Dee Machines Disabled 1 | . . . . . 1 Max in Single Turn . | . . . . . . Machines Sabotaged . | . . . . . . Garrisons Compromised . | . . . . . . Overloaded Fab Kills . | . . . . . . Fab Network Shutdowns . | . . . . . . Hacking | -11 -10 -9 -9 -7 -7 --------- Run | Scr Mat Mat Min Zio Dee Machines Accessed 2 | . 1 1 . . . Terminals 2 | . 1 1 . . . Fabricators . | . . . . . . Repair Stations . | . . . . . . Recycling Units . | . . . . . . Scanalyzers . | . . . . . . Garrison Access . | . . . . . . Total Hacks 8 | . 5 3 . . . Successful 3 | . 2 1 . . . Failed 5 | . 3 2 . . . Catastrophic . | . . . . . . Database Lockouts . | . . . . . . Manual 10 | . 5 . . 5 . Terminals 8 | . 5 3 . . . Fabricators . | . . . . . . Repair Stations . | . . . . . . Recycling Units . | . . . . . . Scanalyzers . | . . . . . . Garrison Access . | . . . . . . Terminal Hacks 3 | . 2 1 . . . Robot Analysis 2 | . 2 . . . . Level Access Points 1 | . . 1 . . . Fabricator Hacks . | . . . . . . Repair Station Hacks . | . . . . . . Recycling Unit Hacks . | . . . . . . Scanalyzer . | . . . . . . Garrison Access Hacks . | . . . . . . Unauthorized Hacks . | . . . . . . Terminals . | . . . . . . Fabricators . | . . . . . . Repair Stations . | . . . . . . Recycling Units . | . . . . . . Scanalyzers . | . . . . . . Garrison Access . | . . . . . . Data Cores Recovered . | . . . . . . Used . | . . . . . . Hacking Detections 2 | . 1 1 . . . Full Trace Events 1 | . 1 . . . . Feedback Events . | . . . . . . Feedback Blocked . | . . . . . . Robot Schematics Acquired . | . . . . . . Robots Built . | . . . . . . Matter . | . . . . . . Time . | . . . . . . Total Robot Build Rating . | . . . . . . Part Schematics Acquired . | . . . . . . Parts Built . | . . . . . . Matter . | . . . . . . Time . | . . . . . . Total Part Build Rating . | . . . . . . Parts Repaired . | . . . . . . Time . | . . . . . . Parts Recycled . | . . . . . . Recycled Matter . | . . . . . . Retrieved Matter . | . . . . . . Retrieved Components . | . . . . . . Parts Scanalyzed . | . . . . . . Part Schematics Acquired . | . . . . . . Parts Damaged . | . . . . . . Bothacking | -11 -10 -9 -9 -7 -7 ------------ Run | Scr Mat Mat Min Zio Dee Used RIF Installer . | . . . . . . Robots Hacked . | . . . . . . Non-combat . | . . . . . . Combat . | . . . . . . Robot Hacks Applied . | . . . . . . Relay Couplers Released . | . . . . . . Robots Rewired . | . . . . . . Allies Hacked . | . . . . . . Hacks Repelled . | . . . . . . Allies | -11 -10 -9 -9 -7 -7 -------- Run | Scr Mat Mat Min Zio Dee Total Allies 5 | . . . 3 2 . Largest Group 5 | . . . 3 5 5 Highest-Rated Group 228 | . . . 40 228 228 Highest-Rated Ally 94 | . . . 16 94 94 Total Orders 1 | . . . . . 1 STAY 1 | . . . . . 1 Ally Attacks 38 | . . . . . 38 Total Damage 823 | . . . . . 823 Kills 10 | . . . . . 10 Allies Corrupted . | . . . . . . Allies Melted . | . . . . . . Intel | -11 -10 -9 -9 -7 -7 ------- Run | Scr Mat Mat Min Zio Dee Robot Analysis Total 2 | . 2 . . . . Derelict Logs Recovered 5 | . . . 2 3 . Drone Launches . | . . . . . . Drone Recoveries . | . . . . . . Exploration | -11 -10 -9 -9 -7 -7 ------------- Run | Scr Mat Mat Min Zio Dee Turns Passed 3200 | 61 203 640 778 1278 240 Spaces Moved 2011 | 38 135 317 493 865 163 Core 17 | 16 . . . . 1 Treads . | . . . . . . Legs 1994 | 22 135 317 493 865 162 Wheels . | . . . . . . Hover . | . . . . . . Flight . | . . . . . . Fastest Speed 50 | 50 120 120 150 120 126 Average Speed 141 | 134 120 139 150 144 127 Slowest Speed 300 | 200 120 150 150 150 300 Overloaded Moves . | . . . . . . Propulsion Burnouts . | . . . . . . Robots Hopped . | . . . . . . Cave-ins Triggered . | . . . . . . Exploration Rate (%) 43 | 3 27 35 90 81 23 Regions Visited 5 Branch Regions 3 Pre-discovered Areas 1 | . . . 1 . . Known Exits Taken 1 | . . . . 1 . Unknown Exits Taken 4 | 1 1 1 1 . . Scrap Searched 7 | . . . 2 5 . Spaces Dug . | . . . . . . Terrain Destroyed 14 | . 2 6 6 . . Melee . | . . . . . . Projectile . | . . . . . . AOE 14 | . 2 6 6 . . Terrain Rammed . | . . . . . . Walls Destroyed . | . . . . . . Machines Disabled . | . . . . . . Actions | -11 -10 -9 -9 -7 -7 --------- Run | Scr Mat Mat Min Zio Dee Total 2228 | 44 152 442 506 899 185 Wait 47 | . . 24 . 10 13 Move 2006 | 37 134 316 492 864 163 Hop . | . . . . . . Pick Up 27 | . 4 15 . 8 . Fast Attach 14 | 6 1 4 1 2 . Attach 3 | . . 2 . . 1 Detach . | . . . . . . Swap 16 | 1 . 12 . 3 . Drop 36 | . . 23 . 12 1 Fire 79 | . 13 46 13 . 7 Melee . | . . . . . . Ram . | . . . . . . Kick . | . . . . . . Crush . | . . . . . . Escape Stasis . | . . . . . . Rewire . | . . . . . . Trap . | . . . . . . Miscellaneous . | . . . . . . Route ------- -11/Scrapyard -10/Materials -9/Materials (discovered 4 exits: Mat x3 / [*Min]) -9/Mines (discovered 3 exits: *Mat x2 / *Zio) -7/Zion (discovered 2 exits: *Dee / [*Pro]) -7/Deep Caves History --------- Turn | Location | Event 27 | -11/Scrapyard | Discovered new exit (range 16) 62 | -11/Scrapyard | Entered Materials 258 | -10/Materials | Discovered new exit (range 5) 265 | -10/Materials | Entered another Materials area 265 | -9/Materials | Evolved 2 slots: Power x1, Propulsion x1 285 | -9/Materials | Identified exit to Materials 307 | -9/Materials | Build established: Mutant 872 | -9/Materials | Discovered new exit (range 16) 905 | -9/Materials | Entered Mines 971 | -9/Mines | Discovered exit to Materials (range 5) 974 | -9/Mines | Build established: Scavenger-Mutant 1138 | -9/Mines | Deemed a non-threat by the Exiles lab entrance 1378 | -9/Mines | Assisted by bots powering up and referring to "LRC-V3" 1429 | -9/Mines | Learned Materials terminal intel 1582 | -9/Mines | Discovered exit to Materials (range 9) 1674 | -9/Mines | A Derelict revealed a hidden shortcut to a safe place 1683 | -9/Mines | Entered Zion 1683 | -7/Zion | Accompanied by 3 allies 1796 | -7/Zion | Discovered new exit (range 16) 1952 | -7/Zion | Identified exit to Deep Caves 1974 | -7/Zion | Learned 4 Factory zone layouts 2157 | -7/Zion | Given A8's code to call for help 2400 | -7/Zion | Acquired unknown access codes intercepted by a Zionite 2769 | -7/Zion | Found CR-A16's Pointy Stick 2788 | -7/Zion | Given the Hacking Drone Bay 2788 | -7/Zion | Found Prototype Device 2917 | -7/Zion | Enhanced Grunt warped into view, answering call for help 2920 | -7/Zion | Opened final containment barrier to the Deep Caves 2926 | -7/Zion | Enhanced Grunt warped into view, answering call for help 2941 | -7/Zion | Saw the warning signs outside the Deep Caves entrance 2961 | -7/Zion | Entered Deep Caves 2961 | -7/Deep Caves | Accompanied by 5 allies 3175 | -7/Deep Caves | Z-Facility disabled 3183 | -7/Deep Caves | Attacked by Z-Imprinter 3196 | -7/Deep Caves | Core integrity fell below 50% 3200 | -7/Deep Caves | Core integrity fell below 20% 3201 | -7/Deep Caves | Destroyed by 7X-XP8(z) with Zionite Laser-S Last Messages --------------- 03011_ as-62848 destroyed. 03011_ Acquired 1 matter. 03015_ as-22295 destroyed. 03016_ Acquired 1 matter. 03046_ as-76047 destroyed. 03049_ as-89197 suffers critical hit. 03049_ as-89197 destroyed. 03053_ as-75514 destroyed. 03055_ Acquired 2 matter. 03160_ NEW_ZION: Z-Facility proximity alert. 03182_ Spread Laser destroyed. Z-Imprinter: GET AWAY FROM HERE! I've worked too hard for our future just to have you ruin everything! 03189_ Lgt. Assault Rifle destroyed. 03189_ Aluminum Leg destroyed. 03192_ Imp. Heat Sink destroyed. 03192_ Mak. Leg destroyed. 03195_ Mak. Power Source destroyed. 03195_ Aluminum Leg destroyed. 03196_ Dropped Mak. Power Source. Map ----- +----------------------------------------------------+ | | | | | | | | | | | | | | | | | | | | | | | | | | | ?????????????????????????????????????????????????? | | ????###??????????????????????????????????????????? | | ?? ?????????????????????????????????????###### | | ?? ?????###???????????????????????####?# | | ? ##?### ##?????#######????????### ### | | ? ## # #???### ;#???????## ## ## | | ##### ##?????## ## | | ;#????## ###### | | #?????# ####### | | ;#?????# ##?# # | | z##?????# #??# ##### | | ?""" zI##?????# #?## #???? | | ?""" @ ####### ##### #???? | | ?""" * =%[""## #???? | | ?""" * = ##### | | " % # | | """" ########;! %% # | | ??"" ###??????# % "## # | | ??"" ##????????# " ### # | | ??"" #??????# """ #?# # | | ??" #??????# ## "" #?# # | | ? #?????#??# #?# # | | ? #????????### ### | | ?? #??????????## ### | | ?? ##???????????## #?# | | ???? #?????????????# #?## | | ?????? ?????????????# #### | | ???????? #?????? ## | | ????????? ##?????? ???## | | ?????????? ##???????# ????# ### | | ???????????? #????????# ????# #?## | | ?????????????? ????????# ????# #??## | | ????????????????? ????????# ???## ##??# | | ??????????????????? ????????## ??## ##?# | | ??????????????????????????????????# ### ### | | ??????????????????????????????????# | | ??????????????????????????????????# | +----------------------------------------------------+ Best States ------------- Heat Dissipation 42 Energy Generation 25 Energy Capacity 400 Matter Stores 300 Matter Capacity 300 Sight Range 16 Terrain Scan Density 10 Propulsion Shielding 66 Evasion (%) 40 Item Schematics ----------------- None Robot Schematics ------------------ None Fabricated ------------ Nothing Alien Tech Used ----------------- None Achievements -------------- None Challenges ------------ None Game ------ Seed SignalGyrokineticReplicator Manual? 0 Play Time 00:15:52 Cumulative 194.4 hours Start 2021.05.09 @ 15:23:59 End 2021.05.09 @ 15:39:43 Sessions 1 Manual Loads 0 Difficulty Rogue Special Mode None Game No. 382 Rogue 227 Adventurer 148 Explorer 7 Win Type - Total 4 Types 4/0/0/0/0/0/0/0/0 Lore% 73 Gallery% 83 Achievement% 61 Wizard Run 0 Options --------- ASCII 0 Keyboard 0 Movement Numpad Keybinds 0 Fullscreen 1 Font 18/CogNarrow Map View 76x50 Tactical HUD 1 Map Filters NONE Filters NONE Steam 1 RUN: e88f7514-1d1a-4474-898d-f742288717d4